{"text_format":"3","workbook":"xlsx","n_sheets":6,"sheets":["Organizador","Graf_Gastos","Apoio_Churrasco","TD_Churrasco","Gráfico de Gastos","Sobre"],"not_rendered":{"charts":1,"images":11,"external_links":1,"defined_names":306,"comments":1,"pivot_tables":2},"read":"whole","date_system":"1900"}

{"sheet":"Organizador","index":0,"n_rows":26,"n_cols":14,"rows_kept":26,"merged":[[1,1,4,14],[5,4,7,11],[14,2,14,3],[14,6,14,7],[14,10,14,11]]}
{"$rows_empty":9}
[null,null,"Churrasco com 4 horas de duração"]
[]
[null,null,"Mulheres ","Homens","Crianças"]
[null,null,0,0,0]
[]
[null,null,"Bebidas",null,"Planejado","Realizado","Churrasco",null,"Planejado","Realizado","Diversos",null,"Planejado","Realizado"]
[null,null,{"$f":"Apoio_Churrasco!L3","v":0},"Cerveja 350 ml",{"$f":"Apoio_Churrasco!M3","v":0},null,{"$f":"(Apoio_Churrasco!$C$14*c_Homens)+(Apoio_Churrasco!$C$15*c_Mulheres)+(Apoio_Churrasco!$C$16*c_Criancas)&\" Kg de\"","v":"0 Kg de"},"Alcatra",{"$f":"Apoio_Churrasco!M12","v":0},null,{"$f":"Apoio_Churrasco!L21 &\" Kg de\"","v":"0 Kg de"},"Queijo Coalho",{"$f":"Apoio_Churrasco!M21","v":0}]
[null,null,{"$f":"Apoio_Churrasco!L4","v":0},"Refrigerante 1L",{"$f":"Apoio_Churrasco!M4","v":0},null,{"$f":"(Apoio_Churrasco!$C$37*c_Homens)+(Apoio_Churrasco!$C$38*c_Mulheres)+(Apoio_Churrasco!$C$39*c_Criancas)&\" Kg de\"","v":"0 Kg de"},"Maminha",{"$f":"Apoio_Churrasco!M13","v":0},null,{"$f":"Apoio_Churrasco!L22","v":0},"Guardanapos (50 unid)",{"$f":"Apoio_Churrasco!M22","v":0}]
[null,null,{"$f":"Apoio_Churrasco!L5","v":0},"Água 1L",{"$f":"Apoio_Churrasco!M5","v":0},null,{"$f":"(Apoio_Churrasco!$C$17*c_Homens)+(Apoio_Churrasco!$C$18*c_Mulheres)+(Apoio_Churrasco!$C$19*c_Criancas)&\" Kg de\"","v":"0 Kg de"},"Linguiça",{"$f":"Apoio_Churrasco!M14","v":0},null,{"$f":"Apoio_Churrasco!L23","v":0},"Copos Descart. (20 unid)",{"$f":"Apoio_Churrasco!M23","v":0}]
[null,null,{"$f":"Apoio_Churrasco!L6","v":0},"Suco 1L",{"$f":"Apoio_Churrasco!M6","v":0},null,{"$f":"(Apoio_Churrasco!$C$20*c_Homens)+(Apoio_Churrasco!$C$21*c_Mulheres)+(Apoio_Churrasco!$C$22*c_Criancas)&\" Kg de\"","v":"0 Kg de"},"Frango",{"$f":"Apoio_Churrasco!M15","v":0},null,{"$f":"Apoio_Churrasco!L24","v":0},"Talheres Desc. (20 unid)",{"$f":"Apoio_Churrasco!M24","v":0}]
[null,null,{"$f":"Apoio_Churrasco!L7","v":0},"Vinho 1L",{"$f":"Apoio_Churrasco!M7","v":0},null,{"$f":"(Apoio_Churrasco!$C$23*c_Homens)+(Apoio_Churrasco!$C$24*c_Mulheres)+(Apoio_Churrasco!$C$25*c_Criancas)&\" Kg de\"","v":"0 Kg de"},"Picanha",{"$f":"Apoio_Churrasco!M16","v":0},null,{"$f":"Apoio_Churrasco!$H$17*Apoio_Churrasco!$C$35 &\" Kg de\"","v":"0 Kg de"},"Pães de Alho",{"$f":"Apoio_Churrasco!M25","v":0}]
[null,null,{"$f":"Apoio_Churrasco!L8","v":0},"Vodka 1L",{"$f":"Apoio_Churrasco!M8","v":0},null,{"$f":"(Apoio_Churrasco!$C$40*c_Homens)+(Apoio_Churrasco!$C$41*c_Mulheres)+(Apoio_Churrasco!$C$42*c_Criancas)&\" Kg de\"","v":"0 Kg de"},"Coração",{"$f":"Apoio_Churrasco!M17","v":0},null,{"$f":"Apoio_Churrasco!H17*Apoio_Churrasco!C29","v":0},"Pãezinhos",{"$f":"Apoio_Churrasco!M26","v":0}]
[null,null,{"$f":"Apoio_Churrasco!L9","v":0},"Gelo  (5 Kg)",{"$f":"Apoio_Churrasco!M9","v":0},null,{"$f":"Apoio_Churrasco!$H$17*Apoio_Churrasco!$C$26&\" Kg de\"","v":"0 Kg de"},"Arroz",{"$f":"Apoio_Churrasco!M18","v":0},null,{"$f":"Apoio_Churrasco!H17*Apoio_Churrasco!C36&\" Kg\"","v":"0 Kg"},"Frutas Diversas",{"$f":"Apoio_Churrasco!M27","v":0}]
[null,null,{"$f":"Apoio_Churrasco!L10","v":0},"Carvão (4 kg)",{"$f":"Apoio_Churrasco!$M$10","v":0},null,{"$f":"Apoio_Churrasco!$H$17*Apoio_Churrasco!$C$27&\" Kg de\"","v":"0 Kg de"},"Farofa",{"$f":"Apoio_Churrasco!M19","v":0},null,{"$f":"Apoio_Churrasco!$H$17*Apoio_Churrasco!$C$28&\" Kg\"","v":"0 Kg"},"Saladas",{"$f":"Apoio_Churrasco!M28","v":0}]
[null,"*",null,null,0,{"$nulls":3},0,{"$nulls":3},0]
[]
[null,null,"Dicas"]

{"sheet":"Graf_Gastos","index":1,"n_rows":9,"n_cols":2,"rows_kept":9,"hidden":true}
[]
[]
["Rótulos de Linha","Soma de Real"]
["Acomp.",{"v":0,"d":"R$ 0.00"}]
["Bebidas",{"v":0,"d":"R$ 0.00"}]
["Carnes",{"v":0,"d":"R$ 0.00"}]
["Diversos",{"v":0,"d":"R$ 0.00"}]
["Frutas",{"v":0,"d":"R$ 0.00"}]
["Total Geral",{"v":0,"d":"R$ 0.00"}]

{"sheet":"Apoio_Churrasco","index":2,"n_rows":43,"n_cols":31,"rows_kept":43,"hidden":true}
[]
[null,"Item","Quantidade","Pessoas",null,null,"Cálculo","Quant.",null,"Produto","Preço","Quantidade","Planejado","Real","Item",{"$nulls":9},"Produto","Custo Previsto","Preço","Qtde","Custo Real","Item","Diferença"]
[null,"Cerveja",4,"homem",null,null,"Carnes (H)",{"$f":"c_Homens","v":0},null,"Cerveja 350 ml",{"v":2.5,"d":"R$ 2.50"},{"$f":"(Apoio_Churrasco!H6*Apoio_Churrasco!C3)+(Apoio_Churrasco!H7*Apoio_Churrasco!C4)","v":0},{"$f":"K3*L3","v":0},{"$f":"Organizador!$F$16","v":0},"Bebidas",null,"Custo Total",{"$nulls":7},{"$f":"J3","v":"Cerveja 350 ml"},{"$f":"Apoio_Churrasco!M3","v":0},{"$f":"Apoio_Churrasco!K3","v":{"v":2.5,"d":"R$ 2.50"}},{"$f":"Apoio_Churrasco!L3","v":0},{"$f":"Apoio_Churrasco!N3","v":0},"Bebidas",{"$f":"Z3-AC3","v":0}]
[null,"Cerveja",2,"mulher",null,null,"Carnes (M)",{"$f":"c_Mulheres","v":0},null,"Refrigerante 1L",{"v":4.5,"d":"R$ 4.50"},{"$f":"Apoio_Churrasco!H8*Apoio_Churrasco!C5+Apoio_Churrasco!H9*Apoio_Churrasco!C6","v":{"v":0,"d":"0.000"}},{"$f":"K4*L4","v":0},{"$f":"Organizador!$F$17","v":0},"Bebidas",null,{"$f":"SUM($N$3:$N$29)","v":0},{"$nulls":7},{"$f":"J4","v":"Refrigerante 1L"},{"$f":"Apoio_Churrasco!M4","v":0},{"$f":"Apoio_Churrasco!K4","v":{"v":4.5,"d":"R$ 4.50"}},{"$f":"Apoio_Churrasco!L4","v":0},{"$f":"Apoio_Churrasco!N4","v":0},"Bebidas",0]
[null,"Refrigerante",0.5,"criança",null,null,"Carnes (C )",{"$f":"c_Criancas","v":0},null,"Água 1L",{"v":1.5,"d":"R$ 1.50"},{"$f":"Apoio_Churrasco!H10*Apoio_Churrasco!C7+Apoio_Churrasco!H11*Apoio_Churrasco!C8","v":{"v":0,"d":"0.000"}},0,{"$f":"Organizador!$F$18","v":0},"Bebidas",{"$nulls":9},"Água 1L",{"$f":"Apoio_Churrasco!M5","v":0},{"$f":"Apoio_Churrasco!K5","v":{"v":1.5,"d":"R$ 1.50"}},{"$f":"Apoio_Churrasco!L5","v":0},{"$f":"Apoio_Churrasco!N5","v":0},"Bebidas",0]
[null,"Refrigerante",0.2,"adulto",null,null,"Cerveja (H)",{"$f":"c_Homens","v":0},null,"Suco 1L",{"v":3.5,"d":"R$ 3.50"},{"$f":"Apoio_Churrasco!H12*Apoio_Churrasco!C9+Apoio_Churrasco!H13*Apoio_Churrasco!C10","v":{"v":0,"d":"0.000"}},0,{"$f":"Organizador!$F$19","v":0},"Bebidas",null,"Total de Convidados",{"$nulls":7},"Suco 1L",{"$f":"Apoio_Churrasco!M6","v":0},{"$f":"Apoio_Churrasco!K6","v":{"v":3.5,"d":"R$ 3.50"}},{"$f":"Apoio_Churrasco!L6","v":0},{"$f":"Apoio_Churrasco!N6","v":0},"Bebidas",0]
[null,"Agua",0.2,"criança",null,null,"Cerveja (M)",{"$f":"c_Mulheres","v":0},null,"Vinho 1L",{"v":8,"d":"R$ 8.00"},{"$f":"Apoio_Churrasco!H14*Apoio_Churrasco!C11","v":{"v":0,"d":"0.000"}},0,{"$f":"Organizador!$F$20","v":0},"Bebidas",null,{"$f":"c_Homens+c_Mulheres","v":0},{"$nulls":7},"Vinho 1L",{"$f":"Apoio_Churrasco!M7","v":0},{"$f":"Apoio_Churrasco!K7","v":{"v":8,"d":"R$ 8.00"}},{"$f":"Apoio_Churrasco!L7","v":0},{"$f":"Apoio_Churrasco!N7","v":0},"Bebidas",0]
[null,"Agua",0.2,"adulto",null,null,"Refrigerante (C )",{"$f":"c_Criancas","v":0},null,"Vodka 1L",{"v":20,"d":"R$ 20.00"},{"$f":"Apoio_Churrasco!H15*Apoio_Churrasco!C13","v":{"v":0,"d":"0.000"}},0,{"$f":"Organizador!$F$21","v":0},"Bebidas",{"$nulls":9},"Vodka 1L",{"$f":"Apoio_Churrasco!M8","v":0},{"$f":"Apoio_Churrasco!K8","v":{"v":20,"d":"R$ 20.00"}},{"$f":"Apoio_Churrasco!L8","v":0},{"$f":"Apoio_Churrasco!N8","v":0},"Bebidas",0]
[null,"Suco",0.2,"criança",null,null,"Refrigerante (A)",{"$f":"c_Homens+c_Mulheres","v":0},null,"Gelo (Kg)",{"v":10,"d":"R$ 10.00"},{"$f":"Apoio_Churrasco!$H$17*Apoio_Churrasco!$C$31/5","v":{"v":0,"d":"0.000"}},0,{"$f":"Organizador!$F$22","v":0},"Diversos",null,"Custo por Pessoa",{"$nulls":7},"Gelo (Kg)",{"$f":"Apoio_Churrasco!M9","v":0},{"$f":"Apoio_Churrasco!K9","v":{"v":10,"d":"R$ 10.00"}},{"$f":"Apoio_Churrasco!L9","v":0},{"$f":"Apoio_Churrasco!N9","v":0},"Diversos",0]
[null,"Suco",0.1,"adulto",null,null,"Agua (C )",{"$f":"c_Criancas","v":0},null,"Carvão (kg)",{"v":12.5,"d":"R$ 12.50"},{"$f":"Apoio_Churrasco!$H$17*Apoio_Churrasco!$C$30/4","v":{"v":0,"d":"0.000"}},{"$f":"K10*L10","v":0},{"$f":"Organizador!$F$23","v":0},"Diversos",null,{"$f":"IF(Q7=0,\"R$  -  \",Q4/Q7)","v":"R$  -  "},{"$nulls":7},"Carvão (kg)",{"$f":"Apoio_Churrasco!M10","v":0},{"$f":"Apoio_Churrasco!K10","v":{"v":12.5,"d":"R$ 12.50"}},{"$f":"Apoio_Churrasco!L10","v":0},{"$f":"Apoio_Churrasco!N10","v":0},"Diversos",0]
[null,"Vinho",0.1,"adulto",null,null,"Agua (A)",{"$f":"c_Homens+c_Mulheres","v":0}," ","Adicional 1",null,null,{"$f":"Organizador!E24","v":0},{"$f":"Organizador!$F$24","v":0},"Diversos",{"$nulls":9},"Adicional 1",{"$f":"Apoio_Churrasco!M11","v":0},{"$f":"Apoio_Churrasco!K11","v":0},{"$f":"Apoio_Churrasco!L11","v":0},{"$f":"Apoio_Churrasco!N11","v":0},"Diversos",0]
[null,"Caipirinha",0.05,"adulto",null,null,"Suco (C )",{"$f":"c_Criancas","v":0},null,"Alcatra (Kg)",{"v":22,"d":"R$ 22.00"},{"$f":"(Apoio_Churrasco!$C$14*c_Homens)+(Apoio_Churrasco!$C$15*c_Mulheres)+(Apoio_Churrasco!$C$16*c_Criancas)","v":{"v":0,"d":"0.000"}},0,{"$f":"Organizador!$J$16","v":0},"Carnes",null,"Custo Planejado",{"$nulls":7},"Alcatra (Kg)",{"$f":"Apoio_Churrasco!M12","v":0},{"$f":"Apoio_Churrasco!K12","v":{"v":22,"d":"R$ 22.00"}},{"$f":"Apoio_Churrasco!L12","v":0},{"$f":"Apoio_Churrasco!N12","v":0},"Churrasco",0]
[null,"Vodka",0.1,"adulto",null,null,"Suco (A)",{"$f":"c_Homens+c_Mulheres","v":0},null,"Linguiça (Kg)",{"v":9.5,"d":"R$ 9.50"},{"$f":"(Apoio_Churrasco!$C$17*c_Homens)+(Apoio_Churrasco!$C$18*c_Mulheres)+(Apoio_Churrasco!$C$19*c_Criancas)","v":{"v":0,"d":"0.000"}},0,{"$f":"Organizador!$J$17","v":0},"Carnes",null,{"$f":"SUM($M$3:$M$29)","v":0},{"$nulls":7},"Linguiça (Kg)",{"$f":"Apoio_Churrasco!M13","v":0},{"$f":"Apoio_Churrasco!K13","v":{"v":9.5,"d":"R$ 9.50"}},{"$f":"Apoio_Churrasco!L13","v":0},{"$f":"Apoio_Churrasco!N13","v":0},"Churrasco",0]
[null,"Alcatra",0.043,"homem",null,null,"Vinho",{"$f":"c_Homens+c_Mulheres","v":0},null,"Frango (Kg)",{"v":5.8,"d":"R$ 5.80"},{"$f":"(Apoio_Churrasco!$C$20*c_Homens)+(Apoio_Churrasco!$C$21*c_Mulheres)+(Apoio_Churrasco!$C$22*c_Criancas)","v":{"v":0,"d":"0.000"}},0,{"$f":"Organizador!$J$18","v":0},"Carnes",{"$nulls":9},"Frango (Kg)",{"$f":"Apoio_Churrasco!M14","v":0},{"$f":"Apoio_Churrasco!K14","v":{"v":5.8,"d":"R$ 5.80"}},{"$f":"Apoio_Churrasco!L14","v":0},{"$f":"Apoio_Churrasco!N14","v":0},"Churrasco",0]
[null,"Alcatra",0.029,"mulher",null,null,"Vodka",{"$f":"c_Homens+c_Mulheres","v":0},null,"Picanha (Kg)",{"v":22.5,"d":"R$ 22.50"},{"$f":"(Apoio_Churrasco!$C$23*c_Homens)+(Apoio_Churrasco!$C$24*c_Mulheres)+(Apoio_Churrasco!$C$25*c_Criancas)","v":{"v":0,"d":"0.000"}},0,{"$f":"Organizador!$J$19","v":0},"Carnes",{"$nulls":9},"Picanha (Kg)",{"$f":"Apoio_Churrasco!M15","v":0},{"$f":"Apoio_Churrasco!K15","v":{"v":22.5,"d":"R$ 22.50"}},{"$f":"Apoio_Churrasco!L15","v":0},{"$f":"Apoio_Churrasco!N15","v":0},"Churrasco",0]
[null,"Alcatra",0.014,"criança",null,null,"Caipirinha",{"$f":"c_Homens+c_Mulheres","v":0},null,"Maminha (Kg)",{"v":8,"d":"R$ 8.00"},{"$f":"(Apoio_Churrasco!$C$37*c_Homens)+(Apoio_Churrasco!$C$38*c_Mulheres)+(Apoio_Churrasco!$C$39*c_Criancas)","v":{"v":0,"d":"0.000"}},0,{"$f":"Organizador!$J$20","v":0},"Carnes",{"$nulls":9},"Maminha (Kg)",{"$f":"Apoio_Churrasco!M16","v":0},{"$f":"Apoio_Churrasco!K16","v":{"v":8,"d":"R$ 8.00"}},{"$f":"Apoio_Churrasco!L16","v":0},{"$f":"Apoio_Churrasco!N16","v":0},"Churrasco",0]
[null,"Linguiça",0.085,"homem",null,null,"Total",{"$f":"c_Criancas+c_Homens+c_Mulheres","v":0},null,"Coração (Kg)",{"v":16.5,"d":"R$ 16.50"},{"$f":"(Apoio_Churrasco!$C$40*c_Homens)+(Apoio_Churrasco!$C$41*c_Mulheres)+(Apoio_Churrasco!$C$42*c_Criancas)","v":{"v":0,"d":"0.000"}},0,{"$f":"Organizador!$J$21","v":0},"Carnes",{"$nulls":9},"Coração (Kg)",{"$f":"Apoio_Churrasco!M17","v":0},{"$f":"Apoio_Churrasco!K17","v":{"v":16.5,"d":"R$ 16.50"}},{"$f":"Apoio_Churrasco!L17","v":0},{"$f":"Apoio_Churrasco!N17","v":0},"Churrasco",0]
[null,"Linguiça",0.055,"mulher",{"$nulls":5},"Arroz",{"$f":"12/5","v":{"v":2.4,"d":"R$ 2.40"}},{"$f":"Apoio_Churrasco!H13*Apoio_Churrasco!C26","v":{"v":0,"d":"0.000"}},0,{"$f":"Organizador!$J$22","v":0},"Acomp.",{"$nulls":9},"Arroz",{"$f":"Apoio_Churrasco!M18","v":0},{"$f":"Apoio_Churrasco!K18","v":{"v":2.4,"d":"R$ 2.40"}},{"$f":"Apoio_Churrasco!L18","v":0},{"$f":"Apoio_Churrasco!N18","v":0},"Acomp.",0]
[null,"Linguiça",0.03,"criança",{"$nulls":5},"Farofa",{"v":4.5,"d":"R$ 4.50"},{"$f":"Apoio_Churrasco!H14*Apoio_Churrasco!C27","v":{"v":0,"d":"0.000"}},0,{"$f":"Organizador!$J$23","v":0},"Acomp.",{"$nulls":9},"Farofa",{"$f":"Apoio_Churrasco!M19","v":0},{"$f":"Apoio_Churrasco!K19","v":{"v":4.5,"d":"R$ 4.50"}},{"$f":"Apoio_Churrasco!L19","v":0},{"$f":"Apoio_Churrasco!N19","v":0},"Acomp.",0]
[null,"Frango",0.043,"homem",{"$nulls":5},"Adicional 2",null,null,{"$f":"Organizador!I24","v":0},{"$f":"Organizador!$J$24","v":0},"Diversos",{"$nulls":9},"Adicional 2",{"$f":"Apoio_Churrasco!M20","v":0},{"$f":"Apoio_Churrasco!K20","v":0},{"$f":"Apoio_Churrasco!L20","v":0},{"$f":"Apoio_Churrasco!N20","v":0},"Diversos",0]
[null,"Frango",0.029,"mulher",{"$nulls":5},"Queijo Coalho",{"v":31.99,"d":"R$ 31.99"},{"$f":"Apoio_Churrasco!H17*Apoio_Churrasco!C43","v":{"v":0,"d":"0.000"}},0,{"$f":"Organizador!$N$16","v":0},"Acomp.",{"$nulls":9},"Queijo Coalho",{"$f":"Apoio_Churrasco!M21","v":0},{"$f":"Apoio_Churrasco!K21","v":{"v":31.99,"d":"R$ 31.99"}},{"$f":"Apoio_Churrasco!L21","v":0},{"$f":"Apoio_Churrasco!N21","v":0},"Acomp.",0]
[null,"Frango",0.014,"criança",{"$nulls":5},"Guardanapos (50 unid)",{"$f":"10/4","v":{"v":2.5,"d":"R$ 2.50"}},{"$f":"(Apoio_Churrasco!H17*Apoio_Churrasco!C32)*10/50","v":0},0,{"$f":"Organizador!$N$17","v":0},"Diversos",{"$nulls":9},"Guardanapos (50 unid)",{"$f":"Apoio_Churrasco!M22","v":0},{"$f":"Apoio_Churrasco!K22","v":{"v":2.5,"d":"R$ 2.50"}},{"$f":"Apoio_Churrasco!L22","v":0},{"$f":"Apoio_Churrasco!N22","v":0},"Diversos",0]
[null,"Picanha",0.043,"homem",{"$nulls":5},"Copos Descart. (20 unid)",{"v":4,"d":"R$ 4.00"},{"$f":"(Apoio_Churrasco!H17*Apoio_Churrasco!C33)*4/20","v":0},0,{"$f":"Organizador!$N$18","v":0},"Diversos",{"$nulls":9},"Copos Descart. (20 unid)",{"$f":"Apoio_Churrasco!M23","v":0},{"$f":"Apoio_Churrasco!K23","v":{"v":4,"d":"R$ 4.00"}},{"$f":"Apoio_Churrasco!L23","v":0},{"$f":"Apoio_Churrasco!N23","v":0},"Diversos",0]
[null,"Picanha",0.029,"mulher",{"$nulls":5},"Talheres Desc. (20 unid)",{"v":4.5,"d":"R$ 4.50"},{"$f":"(Apoio_Churrasco!H17*Apoio_Churrasco!C34)*4/20","v":0},0,{"$f":"Organizador!$N$19","v":0},"Diversos",{"$nulls":9},"Talheres Desc. (20 unid)",{"$f":"Apoio_Churrasco!M24","v":0},{"$f":"Apoio_Churrasco!K24","v":{"v":4.5,"d":"R$ 4.50"}},{"$f":"Apoio_Churrasco!L24","v":0},{"$f":"Apoio_Churrasco!N24","v":0},"Diversos",{"$f":"Z24-AC24","v":0}]
[null,"Picanha",0.014,"criança",{"$nulls":5},"Pães de Alho",{"v":6.5,"d":"R$ 6.50"},{"$f":"Apoio_Churrasco!H17*Apoio_Churrasco!C35","v":{"v":0,"d":"0.000"}},0,{"$f":"Organizador!$N$20","v":0},"Acomp.",{"$nulls":9},{"$f":"J25","v":"Pães de Alho"},{"$f":"Apoio_Churrasco!M25","v":0},{"$f":"Apoio_Churrasco!K25","v":{"v":6.5,"d":"R$ 6.50"}},{"$f":"Apoio_Churrasco!L25","v":0},{"$f":"Apoio_Churrasco!N25","v":0},"Acomp.",{"$f":"Z25-AC25","v":0}]
[null,"Arroz",0.08,"adulto",{"$nulls":5},"Pãezinhos",{"$f":"5/4","v":{"v":1.25,"d":"R$ 1.25"}},{"$f":"Apoio_Churrasco!$H$17*Apoio_Churrasco!$C$29","v":{"v":0,"d":"0.000"}},0,{"$f":"Organizador!$N$21","v":0},"Acomp.",{"$nulls":9},"Pãezinhos",{"$f":"Apoio_Churrasco!M26","v":0},{"$f":"Apoio_Churrasco!K26","v":{"v":1.25,"d":"R$ 1.25"}},{"$f":"Apoio_Churrasco!L26","v":0},{"$f":"Apoio_Churrasco!N26","v":0},"Acomp.",0]
[null,"Farofa",0.04,"adulto",{"$nulls":5},"Frutas Diversas",{"v":8,"d":"R$ 8.00"},{"$f":"Apoio_Churrasco!$H$17*Apoio_Churrasco!$C$36","v":{"v":0,"d":"0.000"}},0,{"$f":"Organizador!$N$22","v":0},"Frutas",{"$nulls":9},"Frutas Diversas",{"$f":"Apoio_Churrasco!M27","v":0},{"$f":"Apoio_Churrasco!K27","v":{"v":8,"d":"R$ 8.00"}},{"$f":"Apoio_Churrasco!L27","v":0},{"$f":"Apoio_Churrasco!N27","v":0},"Acomp.",0]
[null,"Salada",0.05,"adulto",{"$nulls":5},"Saladas",{"v":5,"d":"R$ 5.00"},{"$f":"Apoio_Churrasco!$H$17*Apoio_Churrasco!$C$28","v":{"v":0,"d":"0.000"}},0,{"$f":"Organizador!$N$23","v":0},"Acomp.",{"$nulls":9},"Saladas",{"$f":"Apoio_Churrasco!M28","v":0},{"$f":"Apoio_Churrasco!K28","v":{"v":5,"d":"R$ 5.00"}},{"$f":"Apoio_Churrasco!L28","v":0},{"$f":"Apoio_Churrasco!N28","v":0},"Acomp.",0]
[null,"Pães",1,"adulto",{"$nulls":5},"Adicional 3",null,null,{"$f":"Organizador!M24","v":0},{"$f":"Organizador!$N$24","v":0},"Diversos",{"$nulls":9},"Adicional 3",{"$f":"Apoio_Churrasco!M29","v":0},{"$f":"Apoio_Churrasco!K29","v":0},{"$f":"Apoio_Churrasco!L29","v":0},{"$f":"Apoio_Churrasco!N29","v":0},"Diversos",0]
[null,"Carvão",0.5,"adulto"]
[null,"Gelo",0.8,"adulto"]
[null,"Guardanapo",1,"adulto"]
[null,"Copos Descart.",1,"adulto"]
[null,"Talheres Desc.",1,"adulto",{"$nulls":3},"Homem","Mulher","Criança"]
[null,"Pão de Alho",0.05,"adulto",null,null,"Coração",0.043,0.029,0.014]
[null,"Frutas Diversas",0.12,"adulto",null,null,"Maminha",0.043,0.029,0.014]
[null,"Maminha",0.043,"homem",null,null,"Alcatra",0.043,0.029,0.014]
[null,"Maminha",0.029,"mulher",null,null,"Picanha",0.043,0.029,0.014]
[null,"Maminha",0.014,"criança",null,null,"Linguiça",0.085,0.055,0.03]
[null,"Coração",0.043,"homem",null,null,"Frango",0.043,0.029,0.014]
[null,"Coração",0.029,"mulher",null,null,"Total",{"$f":"SUM(H35:H40)","v":0.3},{"$f":"SUM(I35:I40)","v":0.2},{"$f":"SUM(J35:J40)","v":0.09999999999999999}]
[null,"Coração",0.014,"criança",{"$nulls":3},300,200,100]
[null,"Queijo ",0.03,"adulto"]

{"sheet":"TD_Churrasco","index":3,"n_rows":9,"n_cols":2,"rows_kept":9,"hidden":true}
[]
[]
["Rótulos de Linha","Soma de Custo Real"]
["Acomp.",14.3]
["Bebidas",111.24]
["Churrasco",39]
["Diversos",23]
["Frutas",7.5]
["Total Geral",195.04]

{"sheet":"Gráfico de Gastos","index":4,"n_rows":24,"n_cols":14,"rows_kept":24,"merged":[[4,3,6,9],[23,13,24,18]]}
{"$rows_empty":23}
[{"$nulls":13},"* Para atualizar Selecione o Gráfico e pressione ALT + F5"]

{"sheet":"Sobre","index":5,"n_rows":0,"n_cols":0,"rows_kept":0}